bitfinex/quotes_SOLUSD_20241126
["timestamp","ask_amount","ask_price","bid_price","bid_amount"]
[1732584559473,23.776884,237.86,237.8,8.18815577]
[1732584559693,31.96503977,237.87,237.8,8.18815577]
[1732584560103,23.776884,237.87,237.8,8.18815577]
[1732584560267,15.26467246,237.9,237.82,12.74257246]
[1732584560592,23.776884,237.89,237.82,12.74257246]
[1732584561168,23.776884,237.87,237.74,10.5152]
[1732584561376,23.776884,237.87,237.8,12.74257246]
[1732584561779,93.50299934,237.93,237.86,12.74257246]
[1732584561780,12.74257246,237.93,237.86,12.74257246]
[1732584561981,15.26407246,237.96,237.88,12.74257246]
[1732584562185,2.5215,237.95,237.9,12.74257246]
[1732584562574,12.74257246,237.92,237.81,6.5479]
[1732584562774,12.74257246,237.89,237.81,19.29047246]
[1732584563275,12.74257246,237.91,237.83,12.74257246]
[1732584563497,39.04145646,237.9,237.83,12.74257246]
[1732584564593,23.776884,237.9,237.84,12.74257246]
[1732584565094,39.04155646,237.9,237.82,12.74257246]
[1732584565405,23.776884,237.87,237.81,19.29047246]
[1732584565595,36.51945646,237.87,237.81,6.5479]
[1732584566690,23.776884,237.87,237.81,19.29047246]
[1732584568604,23.776884,237.87,237.82,12.74257246]
[1732584570496,23.776884,237.87,237.81,19.29047246]
[1732584570993,12.74257246,237.88,237.82,12.74257246]
[1732584571503,56.51945646,237.89,237.82,12.74257246]
[1732584571994,12.74257246,237.88,237.81,23.49527246]
[1732584572406,43.776884,237.89,237.84,12.74257246]
[1732584572704,43.776884,237.89,237.83,12.74257246]
[1732584573908,12.74257246,237.88,237.81,23.49537246]
[1732584574202,12.74257246,237.87,237.81,10.7528]
[1732584574583,12.74257246,237.88,237.81,23.49537246]
[1732584574792,12.74257246,237.82,237.77,15.0162]
[1732584574992,12.74257246,237.79,237.77,15.0162]
[1732584575195,12.74257246,237.8,237.77,15.0162]
[1732584575406,12.74257246,237.79,237.72,12.74257246]
[1732584575574,12.74257246,237.76,237.71,20.1453]
[1732584575772,12.74257246,237.84,237.71,20.1453]
[1732584575998,12.74257246,237.74,237.71,15.9387]
[1732584576202,12.74257246,237.72,237.65,12.74257246]
[1732584576500,12.74257246,237.71,237.64,22.1418]
[1732584576682,12.74257246,237.7,237.64,26.3497]
[1732584579092,12.74257246,237.7,237.61,20.0]
[1732584579299,110.15009934,237.81,237.61,20.0]
[1732584579300,12.74257246,237.68,237.61,20.0]
[1732584579502,12.74257246,237.7,237.62,12.74257246]
[1732584580600,12.74257246,237.7,237.63,4.2082]
[1732584580804,12.74257246,237.7,237.62,16.95087246]
[1732584581103,12.74257246,237.69,237.62,16.95087246]
[1732584581400,2.5241,237.71,237.58,10.5225]
[1732584581401,12.74257246,237.66,237.58,16.95167246]
[1732584581602,12.74257246,237.65,237.58,16.95167246]
[1732584582177,12.74257246,237.66,237.59,12.74257246]
[1732584582611,12.74257246,237.66,237.59,16.95127246]
[1732584583512,12.74257246,237.65,237.59,4.2087]
[1732584583887,2.5245,237.67,237.57,22.1418]
[1732584583888,12.74257246,237.63,237.57,22.1418]
[1732584584612,36.51945646,237.64,237.57,26.351]
[1732584585688,12.74257246,237.63,237.57,26.351]
[1732584586094,23.776884,237.65,237.57,26.351]
[1732584586095,12.74257246,237.64,237.57,26.351]
[1732584586807,12.74257246,237.64,237.57,39.09357246]
[1732584587008,12.74257246,237.63,237.56,12.74257246]
[1732584588296,12.74257246,237.63,237.57,4.2092]
[1732584589297,23.776884,237.65,237.57,4.2092]
[1732584589495,12.74257246,237.64,237.57,4.2092]
[1732584589697,23.776884,237.65,237.58,12.74257246]
[1732584589882,93.50299934,237.7,237.57,4.2092]
[1732584589883,108.7697718,237.7,237.61,12.74257246]
[1732584590081,106.2455718,237.7,237.63,12.74257246]
[1732584590313,12.74257246,237.7,237.63,12.74257246]
[1732584590808,2.5241,237.71,237.63,12.74257246]
[1732584590809,12.74257246,237.71,237.63,12.74257246]
[1732584591109,2.5239,237.73,237.65,12.74257246]
[1732584591110,12.74257246,237.72,237.65,12.74257246]
[1732584591492,23.776884,237.71,237.65,12.74257246]
[1732584592010,26.300984,237.71,237.63,12.74257246]
[1732584592197,26.300984,237.71,237.6,22.0114]
[1732584592198,36.51945646,237.67,237.6,34.75397246]
[1732584592402,12.74257246,237.67,237.6,38.96257246]
[1732584592615,12.74257246,237.68,237.6,38.96257246]
[1732584592994,23.776884,237.67,237.6,38.96257246]
[1732584593394,23.776884,237.67,237.61,12.74257246]
[1732584593714,23.776884,237.68,237.62,12.74257246]
[1732584594714,12.74257246,237.69,237.62,16.95077246]
[1732584599795,12.74257246,237.69,237.62,12.74257246]
[1732584600295,23.776884,237.71,237.64,12.74257246]
[1732584600597,23.776884,237.73,237.66,12.74257246]
[1732584600805,12.74257246,237.75,237.68,12.74257246]
[1732584600999,15.26617246,237.75,237.68,12.74257246]
[1732584601200,2.5236,237.75,237.68,12.74257246]
[1732584601799,2.5244,237.68,237.6,26.2201]
[1732584601999,2.5244,237.68,237.6,38.96267246]
[1732584602621,2.5244,237.68,237.6,34.75397246]
[1732584602816,12.74257246,237.67,237.6,38.96267246]
[1732584603015,12.74257246,237.67,237.6,38.96257246]
[1732584604122,15.26707246,237.67,237.6,38.96257246]
[1732584604626,15.26707246,237.67,237.6,34.75397246]
[1732584605713,15.26707246,237.67,237.55,23.11837246]
[1732584605714,12.74257246,237.63,237.55,23.11837246]
[1732584606521,26.301684,237.64,237.57,12.74257246]
[1732584606700,23.776884,237.64,237.57,12.74257246]
[1732584607325,12.74257246,237.67,237.59,12.74257246]
[1732584607621,23.776884,237.68,237.61,12.74257246]
[1732584608003,12.74257246,237.69,237.61,16.95097246]
[1732584609410,23.776884,237.68,237.61,16.95097246]
[1732584610821,108.76479934,237.72,237.65,12.74257246]
[1732584610822,93.50299934,237.72,237.65,12.74257246]
[1732584611025,12.74257246,237.73,237.65,12.74257246]
[1732584611204,15.26637246,237.73,237.65,12.74257246]
[1732584612005,12.74257246,237.71,237.63,12.74257246]
[1732584612621,15.26667246,237.71,237.63,16.95077246]
[1732584614008,12.74257246,237.71,237.63,16.95077246]
[1732584614930,20.0,237.74,237.65,12.74257246]
[1732584615230,12.74257246,237.73,237.65,12.74257246]
[1732584615827,12.74257246,237.71,237.64,21.5692]
[1732584616025,12.74257246,237.71,237.65,4.2078]
[1732584617536,12.74257246,237.73,237.65,16.95037246]
[1732584617910,12.74257246,237.75,237.67,12.74257246]
[1732584618523,12.74257246,237.77,237.69,12.74257246]
[1732584619824,12.74257246,237.79,237.71,12.74257246]
[1732584620026,12.74257246,237.81,237.74,6.1059]
[1732584620333,12.74257246,237.83,237.75,12.74257246]
[1732584621518,12.74257246,237.82,237.76,4.2059]
[1732584621713,12.74257246,237.82,237.75,12.74257246]
[1732584622934,12.74257246,237.82,237.75,16.94857246]
[1732584623870,12.74257246,237.82,237.75,4.206]
[1732584624219,20.0,237.86,237.77,12.74257246]
[1732584624418,12.74257246,237.85,237.77,12.74257246]
[1732584624613,2.5222,237.89,237.77,12.74257246]
[1732584624828,2.5222,237.89,237.75,4.206]
[1732584624829,12.74257246,237.87,237.79,12.74257246]
[1732584625334,12.74257246,237.87,237.79,4.2052]
[1732584625514,12.74257246,237.85,237.79,4.2052]
[1732584625941,12.74257246,237.83,237.79,4.2052]
[1732584626327,12.74257246,237.83,237.77,4.2056]
[1732584626524,12.74257246,237.81,237.75,4.2059]
[1732584628444,12.74257246,237.83,237.75,16.94847246]
[1732584631028,2.5225,237.86,237.75,16.94847246]
[1732584631029,12.74257246,237.81,237.75,4.2059]
[1732584631849,2.5222,237.88,237.74,6.1059]
[1732584631850,12.74257246,237.77,237.74,6.1059]
[1732584632436,12.74257246,237.77,237.74,10.3121]
[1732584633044,12.74257246,237.84,237.68,6.57]
[1732584633045,12.74257246,237.75,237.68,6.57]
[1732584633224,12.74257246,237.69,237.64,16.4398]
[1732584633552,12.74257246,237.7,237.64,16.4398]
[1732584633731,12.74257246,237.69,237.64,16.4398]
[1732584633936,12.74257246,237.66,237.64,16.4398]
[1732584634136,12.74257246,237.66,237.63,6.57]
[1732584634331,12.74257246,237.64,237.63,6.57]
[1732584634645,12.74257246,237.64,237.61,4.2084]
[1732584635238,26.300884,237.71,237.59,4.2089]
[1732584635449,12.74257246,237.65,237.59,4.2089]
[1732584636255,12.74257246,237.68,237.61,12.74257246]
[1732584636546,23.776884,237.71,237.61,12.74257246]
[1732584636547,12.74257246,237.69,237.61,12.74257246]
[1732584637339,12.74257246,237.69,237.62,4.2083]
[1732584637538,12.74257246,237.68,237.62,4.2083]
[1732584639746,12.74257246,237.68,237.6,12.74257246]
[1732584639940,12.74257246,237.66,237.59,16.95147246]
[1732584640457,12.74257246,237.62,237.57,4.2092]
[1732584642258,12.74257246,237.62,237.55,12.74257246]
[1732584642259,12.74257246,237.59,237.52,4.2101]
[1732584644348,12.74257246,237.61,237.53,12.74257246]
[1732584645459,12.74257246,237.61,237.54,4.2098]
[1732584647350,2.5246,237.66,237.55,12.74257246]
[1732584647351,12.74257246,237.63,237.55,12.74257246]
[1732584647555,12.74257246,237.61,237.53,12.74257246]
[1732584648765,12.74257246,237.63,237.55,12.74257246]
[1732584649751,12.74257246,237.63,237.54,4.2098]
[1732584650065,2.5247,237.65,237.54,4.2098]
[1732584650066,12.74257246,237.61,237.54,4.2098]
[1732584651365,12.74257246,237.61,237.53,4.2099]
[1732584651678,12.74257246,237.59,237.53,4.2099]
[1732584652671,12.74257246,237.57,237.51,27.2199]
[1732584653175,20.0,237.64,237.53,12.74257246]
[1732584653474,32.74257246,237.62,237.55,12.74257246]
[1732584653771,12.74257246,237.62,237.55,12.74257246]
[1732584654657,12.74257246,237.62,237.56,4.2094]
[1732584654972,12.74257246,237.62,237.51,33.5356]
[1732584654973,12.74257246,237.62,237.53,12.74257246]
[1732584655152,12.74257246,237.58,237.52,4.2101]
[1732584655555,12.74257246,237.57,237.52,4.2101]
[1732584655749,12.74257246,237.57,237.51,23.0098]
[1732584656170,12.74257246,237.57,237.51,27.2201]
[1732584656556,12.74257246,237.57,237.51,23.0098]
[1732584657075,12.74257246,237.57,237.51,27.22]
[1732584658157,12.74257246,237.59,237.51,39.96257246]
[1732584659667,12.74257246,237.57,237.51,16.4398]
[1732584659866,12.74257246,237.55,237.48,4.2107]
[1732584660880,23.776884,237.54,237.46,19.9566]
[1732584661061,23.776884,237.52,237.46,15.7455]
[1732584661252,23.776884,237.52,237.46,19.9566]
[1732584662152,12.74257246,237.55,237.47,12.74257246]
[1732584662873,32.74257246,237.56,237.48,12.74257246]
[1732584663075,23.776884,237.55,237.48,12.74257246]
[1732584663275,23.776884,237.55,237.5,12.74257246]
[1732584663453,26.302484,237.57,237.5,12.74257246]
[1732584664564,23.776884,237.58,237.52,12.74257246]
[1732584664769,23.776884,237.58,237.53,12.74257246]
[1732584664969,93.50299934,237.61,237.56,12.74257246]
[1732584665178,93.50299934,237.61,237.55,12.74257246]
[1732584665565,12.74257246,237.63,237.55,16.95217246]
[1732584665762,93.50299934,237.64,237.57,12.74257246]
[1732584665982,93.50299934,237.64,237.58,12.74257246]
[1732584666163,93.50299934,237.64,237.59,12.74257246]
[1732584666480,106.2455718,237.64,237.57,12.74257246]
[1732584666685,12.74257246,237.63,237.55,16.95217246]
[1732584667294,12.74257246,237.63,237.55,12.74257246]
[1732584667483,36.51945646,237.6,237.54,6.3749]
[1732584667788,12.74257246,237.6,237.54,6.3749]
[1732584668494,36.51945646,237.61,237.54,23.32717246]
[1732584668684,23.776884,237.61,237.54,23.32717246]
[1732584668933,36.51945646,237.61,237.54,23.32717246]
[1732584669968,36.51945646,237.58,237.48,6.3749]
[1732584670184,23.776884,237.58,237.51,12.74257246]
[1732584670393,23.776884,237.58,237.52,12.74257246]
[1732584670594,2.5253,237.59,237.52,12.74257246]
[1732584670791,36.51945646,237.6,237.52,12.74257246]
[1732584671769,36.51945646,237.6,237.52,16.95257246]
[1732584671969,36.51945646,237.6,237.53,12.74257246]
[1732584671970,23.776884,237.6,237.53,12.74257246]
[1732584672567,20.0,237.63,237.57,12.74257246]
[1732584672778,12.74257246,237.64,237.57,12.74257246]
[1732584673108,12.74257246,237.65,237.57,12.74257246]
[1732584673288,12.74257246,237.65,237.58,12.74257246]
[1732584673677,12.74257246,237.66,237.59,12.74257246]
[1732584674306,106.2455718,237.69,237.61,12.74257246]
[1732584674502,12.74257246,237.69,237.62,12.74257246]
[1732584675299,12.74257246,237.7,237.62,12.74257246]
[1732584675499,21.2064338,237.74,237.66,12.74257246]
[1732584675500,2.5238,237.74,237.66,12.74257246]
[1732584675705,12.74257246,237.74,237.66,12.74257246]
[1732584675880,15.26617246,237.76,237.68,12.74257246]
[1732584677113,12.74257246,237.71,237.65,4.2077]
[1732584677480,12.74257246,237.68,237.6,12.74257246]
[1732584677686,12.74257246,237.66,237.62,4.2083]
[1732584677984,23.776884,237.7,237.62,4.2083]
[1732584677985,12.74257246,237.67,237.62,4.2083]
[1732584678209,12.74257246,237.66,237.62,4.2083]
[1732584678604,12.74257246,237.65,237.6,4.2087]
[1732584678910,12.74257246,237.66,237.6,4.2087]
[1732584683317,12.74257246,237.62,237.58,4.2089]
[1732584683936,12.74257246,237.6,237.54,4.2098]
[1732584685400,12.74257246,237.62,237.54,16.95237246]
[1732584685605,12.74257246,237.72,237.61,12.74257246]
[1732584685814,12.74257246,237.7,237.61,12.74257246]
[1732584686110,12.74257246,237.68,237.59,12.74257246]
[1732584686796,20.0,237.7,237.59,12.74257246]
[1732584687003,12.74257246,237.69,237.6,4.2087]
[1732584687199,12.74257246,237.67,237.6,4.2087]
[1732584688614,12.74257246,237.65,237.6,4.2087]
[1732584688994,12.74257246,237.67,237.6,4.2087]
[1732584689200,93.50299934,237.72,237.63,12.74257246]
[1732584689201,12.74257246,237.71,237.63,12.74257246]
[1732584689595,23.776884,237.7,237.63,12.74257246]
[1732584689801,23.776884,237.7,237.61,6.6113]
[1732584689802,23.776884,237.7,237.61,19.35387246]
[1732584690001,12.74257246,237.69,237.61,19.35387246]
[1732584690201,12.74257246,237.69,237.62,4.2083]
[1732584691617,12.74257246,237.71,237.63,12.74257246]
[1732584692700,12.74257246,237.71,237.64,4.208]
[1732584693097,12.74257246,237.69,237.64,4.208]
[1732584694118,12.74257246,237.67,237.62,20.2282]
[1732584694312,12.74257246,237.69,237.62,20.2282]
[1732584697096,23.776884,237.7,237.64,4.208]
[1732584697415,12.74257246,237.71,237.64,4.208]
[1732584698396,12.74257246,237.73,237.65,12.74257246]
[1732584698698,12.74257246,237.75,237.67,12.74257246]
[1732584699116,12.74257246,237.75,237.68,4.2073]
[1732584700222,12.74257246,237.73,237.65,12.74257246]
[1732584701097,12.74257246,237.75,237.67,12.74257246]
[1732584701907,12.74257246,237.75,237.68,4.2073]
[1732584704629,2.523,237.82,237.74,12.74257246]
[1732584704932,12.74257246,237.81,237.74,12.74257246]
[1732584706138,23.776884,237.8,237.73,4.2062]
[1732584706512,23.776884,237.8,237.71,20.2267]
[1732584706513,12.74257246,237.77,237.71,20.2267]
[1732584706906,23.776884,237.78,237.71,20.2267]
[1732584707208,12.74257246,237.79,237.72,12.74257246]
[1732584707618,12.74257246,237.81,237.73,4.2064]
[1732584707803,23.776884,237.8,237.73,4.2064]
[1732584708329,23.776884,237.81,237.73,4.2064]
[1732584708635,12.74257246,237.79,237.73,4.2064]
[1732584709503,23.776884,237.8,237.74,12.74257246]
[1732584709698,23.776884,237.8,237.73,4.2064]
[1732584710929,12.74257246,237.79,237.73,4.2064]
[1732584711430,12.74257246,237.79,237.71,16.02]
[1732584711733,12.74257246,237.77,237.71,16.02]
[1732584711919,12.74257246,237.73,237.7,4.2069]
[1732584712118,12.74257246,237.73,237.66,4.2076]
[1732584712320,2.5233,237.79,237.66,4.2076]
[1732584712321,8.16730379,237.72,237.66,4.2076]
[1732584713311,8.16730379,237.79,237.69,8.16730379]
[1732584713518,8.16730379,237.81,237.73,8.16730379]
[1732584715537,8.16730379,237.81,237.74,4.2062]
[1732584715915,8.16730379,237.79,237.72,4.2064]
[1732584717838,8.16730379,237.81,237.73,8.16730379]
[1732584718217,23.776884,237.83,237.73,8.16730379]
[1732584718419,8.16730379,237.8,237.73,8.16730379]
[1732584718632,23.776884,237.83,237.73,8.16730379]
[1732584718829,93.50299934,237.87,237.74,16.6256]
[1732584718830,8.16730379,237.82,237.74,16.6256]
[1732584719131,8.16730379,237.86,237.78,8.16730379]
[1732584719644,8.16730379,237.84,237.77,6.2114]
[1732584719938,8.16730379,237.82,237.78,4.2055]
[1732584720446,8.16730379,237.84,237.78,4.2055]
[1732584721155,0.4056752,237.9,237.8,8.16730379]
[1732584721319,8.16730379,237.88,237.8,8.16730379]
[1732584721643,8.16730379,237.86,237.78,12.37280379]
[1732584721816,8.16730379,237.88,237.8,8.16730379]
[1732584722635,0.4056752,237.9,237.82,16.6256]
[1732584722828,0.4056752,237.9,237.86,8.16730379]
[1732584723243,0.4056752,237.9,237.89,8.16730379]
[1732584723619,0.4056752,237.9,237.87,6.2114]
[1732584723823,0.4056752,237.9,237.89,8.16730379]
[1732584724330,0.4056752,237.9,237.87,14.37870379]
[1732584724638,0.4056752,237.9,237.87,6.2114]
[1732584724835,0.4056752,237.9,237.84,8.16730379]
[1732584725012,8.16730379,237.89,237.82,20.8304]
[1732584725213,0.4056752,237.9,237.83,8.16730379]
[1732584725436,8.57297899,237.9,237.83,8.16730379]
[1732584726125,0.4056752,237.9,237.83,8.16730379]
[1732584726339,0.4056752,237.9,237.83,12.74151267]
[1732584726548,0.4056752,237.9,237.85,12.74151267]
[1732584726845,0.4056752,237.9,237.86,4.2041]
[1732584728131,0.4056752,237.9,237.84,4.2044]
[1732584730055,0.4056752,237.9,237.85,12.74151267]
[1732584731251,0.4056752,237.9,237.85,16.94571267]
[1732584731651,24.1825592,237.9,237.83,4.2045]
[1732584731949,24.1825592,237.9,237.72,12.74151267]
[1732584731950,12.74151267,237.87,237.8,4.2051]
[1732584732141,12.74151267,237.87,237.8,16.94661267]
[1732584733062,32.74151267,237.89,237.82,12.74151267]
[1732584733260,0.4056752,237.9,237.84,12.74151267]
[1732584733559,0.4056752,237.9,237.85,4.2043]
[1732584734054,24.1825592,237.9,237.83,4.2045]
[1732584734258,12.74151267,237.89,237.83,4.2045]
[1732584734637,23.776884,237.88,237.81,4.2048]
[1732584734956,20.0,237.89,237.84,12.74151267]
[1732584735734,20.0,237.89,237.84,4.2044]
[1732584735940,20.0,237.89,237.84,16.94591267]
[1732584736145,20.0,237.89,237.84,4.2044]
[1732584736444,20.0,237.89,237.83,12.74151267]
[1732584736638,0.4056752,237.9,237.83,12.74151267]
[1732584736836,24.1825592,237.9,237.83,12.74151267]
[1732584737537,24.1825592,237.9,237.84,12.74151267]
[1732584737953,20.4056752,237.9,237.85,12.74151267]
[1732584738154,0.4056752,237.9,237.84,16.94591267]
[1732584739159,0.4056752,237.9,237.85,12.74151267]
[1732584739848,0.4056752,237.9,237.86,12.74151267]
[1732584740941,0.4056752,237.9,237.89,12.74151267]
[1732584741163,117.27988334,237.89,237.77,20.6055]
[1732584741368,117.27988334,237.89,237.8,12.74151267]
[1732584741868,12.74151267,237.88,237.82,12.74151267]
[1732584742458,12.74151267,237.88,237.8,12.74151267]
[1732584742660,23.776884,237.89,237.76,12.74151267]
[1732584742661,12.74151267,237.83,237.76,12.74151267]
[1732584742840,12.74151267,237.8,237.73,12.74151267]
[1732584743168,12.74151267,237.82,237.75,12.74151267]
[1732584743338,12.74151267,237.83,237.76,12.74151267]
[1732584743837,12.74151267,237.82,237.75,16.94751267]
[1732584744037,12.74151267,237.81,237.73,16.94781267]
[1732584745041,12.74151267,237.81,237.73,12.74151267]
[1732584745240,12.74151267,237.79,237.72,12.74151267]
[1732584745437,12.74151267,237.78,237.71,16.94811267]
[1732584745748,12.74151267,237.8,237.73,12.74151267]
[1732584746044,23.776884,237.79,237.73,12.74151267]
[1732584747047,23.776884,237.79,237.73,16.94791267]
[1732584747257,23.776884,237.8,237.74,12.74151267]
[1732584747566,23.776884,237.8,237.75,12.74151267]
[1732584748068,23.776884,237.81,237.75,12.74151267]
[1732584748653,23.776884,237.82,237.75,12.74151267]
[1732584748988,23.776884,237.8,237.74,12.74151267]
[1732584749177,93.50299934,237.83,237.77,12.74151267]
[1732584749351,12.74151267,237.84,237.77,12.74151267]
[1732584749868,20.0,237.85,237.79,12.74151267]
[1732584750067,20.0,237.85,237.78,12.74151267]
[1732584750277,12.74151267,237.86,237.79,12.74151267]
[1732584750479,93.50299934,237.89,237.83,12.74151267]
[1732584750772,0.4056752,237.9,237.84,12.74151267]
[1732584751286,0.4056752,237.9,237.83,16.94601267]
[1732584751773,12.74151267,237.88,237.81,16.94641267]
[1732584752074,12.74151267,237.85,237.78,12.74151267]
[1732584752246,12.74151267,237.86,237.79,12.74151267]
[1732584752445,12.74151267,237.87,237.79,12.74151267]
[1732584752668,12.74151267,237.84,237.77,16.94711267]
[1732584752875,23.776884,237.88,237.78,12.74151267]
[1732584752876,12.74151267,237.85,237.78,12.74151267]
[1732584753078,12.74151267,237.81,237.73,12.74151267]
[1732584753369,12.74151267,237.78,237.71,12.74151267]
[1732584753551,12.74151267,237.8,237.72,12.74151267]
[1732584753954,12.74151267,237.8,237.73,12.74151267]
[1732584754266,93.50299934,237.85,237.73,12.74151267]
[1732584754267,12.74151267,237.81,237.73,12.74151267]
[1732584754452,12.74151267,237.8,237.73,12.74151267]
[1732584755275,12.74151267,237.81,237.73,16.94771267]
[1732584755476,12.74151267,237.84,237.77,12.74151267]
[1732584755658,28.51891267,237.86,237.79,12.74151267]
[1732584755862,12.74151267,237.85,237.77,12.74151267]
[1732584756383,12.74151267,237.84,237.76,12.74151267]
[1732584756762,23.776884,237.83,237.76,12.74151267]
[1732584756962,12.74151267,237.82,237.75,12.74151267]
[1732584757186,12.74151267,237.82,237.75,16.94751267]
[1732584757767,36.51839667,237.83,237.76,12.74151267]
[1732584758191,36.51839667,237.83,237.75,16.94751267]
[1732584759089,12.74151267,237.82,237.75,16.94751267]
[1732584759270,23.776884,237.81,237.76,12.74151267]
[1732584760084,23.776884,237.85,237.8,12.74151267]
[1732584760293,23.776884,237.85,237.78,12.74151267]
[1732584760476,36.51839667,237.85,237.78,12.74151267]
[1732584761287,23.776884,237.85,237.8,12.74151267]
[1732584761587,23.776884,237.87,237.8,12.74151267]
[1732584762362,23.776884,237.88,237.81,12.74151267]
[1732584762559,23.776884,237.84,237.8,12.74151267]
[1732584762969,23.776884,237.84,237.79,12.74151267]
[1732584763791,23.776884,237.88,237.82,12.74151267]
[1732584764088,23.776884,237.85,237.82,12.74151267]
[1732584764391,20.0,237.86,237.82,12.74151267]
[1732584764702,23.776884,237.85,237.82,12.74151267]
[1732584765373,23.776884,237.85,237.8,12.74151267]
[1732584765889,20.0,237.82,237.78,12.74151267]
[1732584767878,23.776884,237.83,237.76,12.74151267]
[1732584768372,20.0,237.82,237.78,12.74151267]
[1732584768585,23.776884,237.81,237.78,12.74151267]
[1732584768978,20.0,237.82,237.78,12.74151267]
[1732584769597,12.74151267,237.86,237.78,12.74151267]
[1732584769894,23.776884,237.78,237.71,12.74151267]
[1732584770201,23.776884,237.78,237.73,12.74151267]
[1732584770700,23.776884,237.79,237.73,12.74151267]
[1732584771589,23.776884,237.8,237.73,16.94781267]
[1732584772676,23.776884,237.81,237.74,12.74151267]
[1732584773001,23.776884,237.81,237.75,12.74151267]
[1732584773290,93.50299934,237.84,237.71,4.2068]
[1732584773291,12.74151267,237.83,237.76,12.74151267]
[1732584773494,12.74151267,237.84,237.77,12.74151267]
[1732584773672,12.74151267,237.86,237.78,12.74151267]
[1732584773872,12.74151267,237.87,237.79,12.74151267]
[1732584774100,106.24451201,237.88,237.8,12.74151267]
[1732584774285,12.74151267,237.88,237.8,12.74151267]
[1732584774776,12.74151267,237.88,237.8,16.94661267]
[1732584774976,12.74151267,237.88,237.8,12.74151267]
[1732584775198,12.74151267,237.88,237.8,16.94661267]
[1732584775692,23.776884,237.87,237.8,12.74151267]
[1732584775991,23.776884,237.85,237.79,4.2052]
[1732584776990,12.74151267,237.88,237.8,12.74151267]
[1732584777198,23.776884,237.87,237.8,12.74151267]
[1732584778084,0.4056752,237.9,237.78,4.2055]
[1732584778085,23.776884,237.89,237.82,12.74151267]
[1732584778286,13.14718787,237.9,237.82,12.74151267]
[1732584779100,12.74151267,237.86,237.78,12.74151267]
[1732584779400,0.4056752,237.9,237.84,12.74151267]
[1732584779584,0.4056752,237.9,237.86,12.74151267]
[1732584781899,0.4056752,237.9,237.88,12.74151267]
[1732584783609,0.4056752,237.9,237.88,23.14601267]
[1732584784305,0.4056752,237.9,237.89,0.63036711]
[1732584784608,0.4056752,237.9,237.88,23.14601267]
[1732584784778,0.4056752,237.9,237.88,10.4045]
[1732584784979,0.4056752,237.9,237.89,12.74151267]
[1732584785711,0.4056752,237.9,237.8,25.5611]
[1732584786004,0.4056752,237.9,237.84,12.74151267]
[1732584786306,0.4056752,237.9,237.8,25.5611]
[1732584786307,12.74151267,237.89,237.82,12.74151267]
[1732584786532,12.74151267,237.89,237.8,21.356]
[1732584786533,23.776884,237.88,237.8,34.09751267]
[1732584787306,23.776884,237.88,237.82,12.74151267]
[1732584788005,12.74151267,237.89,237.82,12.74151267]
[1732584788186,0.4056752,237.9,237.82,12.74151267]
[1732584788382,0.4056752,237.9,237.84,12.74151267]
[1732584789306,24.1825592,237.9,237.84,12.74151267]
[1732584789813,0.4056752,237.9,237.84,12.74151267]
[1732584789985,0.4056752,237.9,237.86,12.74151267]
[1732584790307,0.4056752,237.9,237.88,12.74151267]
[1732584790505,0.4056752,237.9,237.89,12.74151267]
[1732584793823,0.4056752,237.9,237.89,34.92711267]
[1732584796099,0.4056752,237.9,237.89,12.74151267]
[1732584797207,0.4056752,237.9,237.89,16.94511267]
[1732584798002,0.4056752,237.9,237.89,12.74151267]
[1732584805836,0.4056752,237.9,237.89,45.55742097]
[1732584806023,0.4056752,237.9,237.89,35.55742097]
[1732584806434,0.4056752,237.9,237.89,35.68291097]
[1732584807210,0.4056752,237.9,237.89,45.68291097]
[1732584807527,0.4056752,237.9,237.89,35.68291097]
[1732584807837,0.4056752,237.9,237.8,4.2052]
[1732584808140,0.4056752,237.9,237.84,12.74151267]
[1732584808306,0.4056752,237.9,237.86,12.74151267]
[1732584811040,0.4056752,237.9,237.88,12.74151267]
[1732584813338,0.4056752,237.9,237.86,12.74151267]
[1732584817208,0.4056752,237.9,237.88,12.74151267]
[1732584818519,0.4056752,237.9,237.73,10.0]
[1732584818722,24.1825592,237.9,237.83,12.74151267]
[1732584820138,0.4056752,237.9,237.87,12.74151267]
[1732584820346,0.4056752,237.9,237.85,12.74151267]
[1732584820717,0.4056752,237.9,237.83,12.74151267]
[1732584821114,24.1825592,237.9,237.83,12.74151267]
[1732584821336,26.7046592,237.9,237.83,12.74151267]
[1732584821540,0.4056752,237.9,237.83,12.74151267]
[1732584821740,24.1825592,237.9,237.83,12.74151267]
[1732584822725,20.0,237.86,237.81,12.74151267]
[1732584822920,23.776884,237.86,237.72,4.2065]
[1732584823262,23.776884,237.86,237.78,12.74151267]